bitfinex/quotes_BTCUSD_20240723
["timestamp","ask_amount","ask_price","bid_price","bid_amount"]
[1721748780153,0.01559851,66551.0,66540.0,0.0005]
[1721748780369,0.01559851,66551.0,66541.0,0.0628]
[1721748780370,0.14981391,66550.0,66541.0,0.0628]
[1721748780571,0.14701991,66550.0,66541.0,0.0628]
[1721748780781,0.002794,66549.0,66541.0,0.0628]
[1721748780987,0.01031139,66551.0,66547.0,0.150268]
[1721748781195,0.00578896,66560.0,66542.0,0.0832]
[1721748781196,0.00299496,66560.0,66542.0,0.0832]
[1721748781409,0.14701991,66550.0,66542.0,0.0832]
[1721748781620,0.00299496,66549.0,66540.0,0.0005]
[1721748781835,0.14981391,66548.0,66540.0,0.0005]
[1721748782058,0.00299496,66547.0,66540.0,0.0005]
[1721748782266,0.14981391,66546.0,66540.0,0.0005]
[1721748782479,0.150276,66545.0,66540.0,0.0005]
[1721748782683,0.14701991,66544.0,66540.0,0.0005]
[1721748783297,0.00299496,66543.0,66540.0,0.0005]
[1721748783497,0.450849,66541.0,66540.0,0.0005]
[1721748783701,0.59786891,66541.0,66540.0,0.0005]
[1721748784650,0.89843491,66541.0,66540.0,0.0005]
[1721748784856,0.99843491,66541.0,66540.0,0.0005]
[1721748785931,0.69786891,66541.0,66540.0,0.0005]
[1721748786142,0.39730291,66541.0,66540.0,0.0005]
[1721748786347,0.99843491,66541.0,66540.0,0.0005]
[1721748786554,1.29900091,66541.0,66540.0,0.0005]
[1721748786795,0.99843491,66541.0,66540.0,0.0005]
[1721748787000,0.69786891,66541.0,66540.0,0.0005]
[1721748787674,1.29900091,66541.0,66540.0,0.0005]
[1721748787883,0.99843491,66541.0,66540.0,0.0005]
[1721748788096,1.35454304,66541.0,66540.0,0.0005]
[1721748788361,2.10567504,66541.0,66540.0,0.0005]
[1721748788556,2.10567504,66541.0,66505.0,0.1413]
[1721748788557,0.15034,66516.0,66505.0,0.1413]
[1721748788782,0.1584,66525.0,66506.0,0.05319462]
[1721748788783,0.15036,66507.0,66506.0,0.05319462]
[1721748788987,0.07348942,66514.0,66492.0,0.734]
[1721748788988,0.14701991,66508.0,66492.0,0.734]
[1721748789195,0.1,66507.0,66495.0,0.300771]
[1721748789413,0.1,66507.0,66496.0,0.300769]
[1721748789627,0.00299496,66518.0,66492.0,0.734]
[1721748789628,0.0492,66526.0,66502.0,0.142]
[1721748789848,0.0492,66526.0,66503.0,0.300737]
[1721748789849,0.44093655,66522.0,66503.0,0.300737]
[1721748790067,0.25001487,66521.0,66508.0,0.150356]
[1721748790270,0.25001487,66521.0,66502.0,0.142]
[1721748790271,0.150335,66518.0,66502.0,0.142]
[1721748790480,0.24701991,66517.0,66505.0,0.300728]
[1721748790709,0.24701991,66517.0,66511.0,0.150349]
[1721748790710,0.1,66517.0,66511.0,0.150349]
[1721748790913,0.1,66517.0,66503.0,0.300737]
[1721748790914,0.150302,66533.0,66523.0,0.0831]
[1721748791131,0.0492,66543.0,66524.0,0.0601]
[1721748791132,0.29977878,66532.0,66524.0,0.0601]
[1721748791357,0.14701991,66539.0,66533.0,0.1503]
[1721748791569,0.14701991,66539.0,66524.0,0.06841]
[1721748791570,0.30501555,66538.0,66524.0,0.0601]
[1721748791788,0.15520164,66537.0,66524.0,0.0601]
[1721748792005,0.150308,66530.0,66524.0,0.0601]
[1721748792236,0.19883059,66536.0,66524.0,0.0601]
[1721748792237,0.19304163,66536.0,66524.0,0.0601]
[1721748792459,0.300568,66541.0,66524.0,0.0601]
[1721748792460,0.002794,66535.0,66534.0,0.450895]
[1721748792674,0.002794,66535.0,66524.0,0.0601]
[1721748792675,0.29729191,66546.0,66524.0,0.0601]
[1721748792897,0.22117144,66545.0,66532.0,0.300604]
[1721748793110,0.36539735,66544.0,66524.0,0.0601]
[1721748793434,0.22117144,66543.0,66533.0,0.300601]
[1721748793546,0.22117144,66543.0,66535.0,0.150296]
[1721748793768,0.31837744,66542.0,66524.0,0.0601]
[1721748793978,0.22117144,66541.0,66524.0,0.0601]
[1721748794206,0.22117144,66541.0,66525.0,0.22321991]
[1721748794208,0.218377,66540.0,66525.0,0.22321991]
[1721748794422,0.00883507,66552.0,66540.0,0.0627]
[1721748794638,0.2183696,66551.0,66543.0,0.300557]
[1721748794879,0.41061019,66550.0,66541.0,0.300566]
[1721748795096,0.63132048,66549.0,66540.0,0.0627]
[1721748795317,0.41061019,66548.0,66540.0,0.0627]
[1721748795543,0.45943817,66547.0,66540.0,0.0627]
[1721748795760,0.2211636,66546.0,66540.0,0.0627]
[1721748796010,0.2211636,66546.0,66524.0,0.0806]
[1721748796011,0.1584,66540.0,66524.0,0.0806]
[1721748796225,0.22050933,66541.0,66524.0,0.0806]
[1721748796226,0.07348942,66525.0,66524.0,0.0806]
[1721748796441,0.150319,66525.0,66524.0,0.0806]
[1721748796660,0.14701991,66539.0,66524.0,0.0806]
[1721748796883,0.3358782,66538.0,66524.0,0.0806]
[1721748797107,0.36540201,66537.0,66524.0,0.0806]
[1721748797340,0.150318,66526.0,66524.0,0.0806]
[1721748797579,0.59797691,66525.0,66524.0,0.0806]
[1721748797806,0.29733891,66525.0,66524.0,0.0806]
[1721748798019,0.14701991,66525.0,66524.0,0.0806]
[1721748798456,0.59797691,66525.0,66524.0,0.0806]
[1721748798933,0.59797691,66525.0,66507.0,0.1421]
[1721748798934,0.14701991,66525.0,66507.0,0.1421]
[1721748799151,0.07348942,66516.0,66507.0,0.1421]
[1721748799387,0.07348942,66509.0,66507.0,0.1421]
[1721748799619,0.19458632,66515.0,66507.0,0.0806]
[1721748799620,0.04457145,66515.0,66507.0,0.0806]
[1721748799828,0.1,66515.0,66507.0,0.0806]
[1721748800116,0.1,66515.0,66508.0,0.150356]
[1721748800534,0.14701991,66514.0,66507.0,0.0806]
[1721748800744,0.150352,66511.0,66507.0,0.0806]
[1721748800955,0.14701991,66511.0,66507.0,0.0806]
[1721748801201,0.1,66515.0,66507.0,0.0806]
[1721748801202,0.22050933,66510.0,66507.0,0.0806]
[1721748801378,0.22050933,66510.0,66500.0,0.446306]
[1721748801379,0.14701991,66508.0,66500.0,0.009306]
[1721748801799,0.400688,66515.0,66501.0,0.0784]
[1721748801800,0.1,66515.0,66501.0,0.0784]
[1721748802010,0.300665,66520.0,66502.0,0.0606]
[1721748802011,0.14701991,66514.0,66502.0,0.0606]
[1721748802430,0.30368796,66513.0,66502.0,0.0606]
[1721748802649,0.150367,66504.0,66502.0,0.0606]
[1721748802865,0.22050933,66512.0,66500.0,0.009306]
[1721748802866,0.14701991,66503.0,66500.0,0.009306]
[1721748803707,0.150373,66501.0,66500.0,0.009306]
[1721748803923,0.59813991,66501.0,66500.0,0.009306]
[1721748804120,0.90188187,66501.0,66500.0,0.009306]
[1721748804738,1.36102887,66501.0,66500.0,0.009306]
[1721748804943,1.49713176,66501.0,66500.0,0.009306]
[1721748805155,1.19638476,66501.0,66500.0,0.009306]
[1721748805362,0.75953487,66501.0,66500.0,0.009306]
[1721748805569,1.06028187,66501.0,66500.0,0.009306]
[1721748805790,1.36102887,66501.0,66500.0,0.009306]
[1721748806000,1.71707226,66501.0,66500.0,0.009306]
[1721748806254,1.71707226,66501.0,66473.0,0.009306]
[1721748806255,1.01037,66492.0,66473.0,0.009306]
[1721748806443,0.1584,66485.0,66473.0,0.009306]
[1721748806641,0.150431,66476.0,66473.0,0.009306]
[1721748806853,0.15001487,66475.0,66473.0,0.009306]
[1721748807067,0.14701991,66475.0,66473.0,0.009306]
[1721748807737,0.0492,66499.0,66474.0,0.0646]
[1721748807969,0.14701991,66498.0,66497.0,0.150382]
[1721748808187,0.1584,66510.0,66498.0,0.300757]
[1721748808188,0.00578896,66509.0,66498.0,0.300757]
[1721748808399,0.002794,66509.0,66508.0,0.150357]
[1721748808614,0.11952614,66509.0,66504.0,0.300732]
[1721748808835,0.002794,66508.0,66507.0,0.150359]
[1721748809066,0.125319,66508.0,66503.0,0.0756]
[1721748809278,0.150373,66501.0,66500.0,0.000924]
[1721748809525,0.30038787,66501.0,66500.0,0.000924]
[1721748809943,0.2837455,66501.0,66500.0,0.000924]
[1721748810391,1.13377129,66501.0,66500.0,0.000924]
[1721748810619,1.94311974,66501.0,66500.0,0.000924]
[1721748810829,1.89311974,66501.0,66500.0,0.000924]
[1721748811266,0.1584,66486.0,66470.0,0.0756]
[1721748811460,0.30841487,66485.0,66470.0,0.0756]
[1721748811668,0.30841487,66485.0,66474.0,0.00986432]
[1721748811669,0.1584,66483.0,66474.0,0.00986432]
[1721748811876,0.150434,66474.0,66470.0,0.0756]
[1721748812080,0.15001487,66474.0,66470.0,0.0756]
[1721748813972,1.06058687,66474.0,66473.0,0.009306]
[1721748814196,0.90218687,66474.0,66473.0,0.009306]
[1721748814426,0.15001487,66474.0,66473.0,0.009306]
[1721748814634,0.15001487,66474.0,66473.0,0.01008075]
[1721748814851,0.14701991,66474.0,66473.0,0.01008075]
[1721748815099,0.14701991,66474.0,66473.0,0.009306]
[1721748815735,0.1767643,66474.0,66473.0,0.009306]
[1721748815942,0.60928387,66474.0,66473.0,0.009306]
[1721748816148,1.16058687,66474.0,66473.0,0.009306]
[1721748816385,0.15001487,66474.0,66473.0,0.009306]
[1721748816584,0.30044887,66474.0,66473.0,0.009306]
[1721748816875,1.43742626,66474.0,66473.0,0.009306]
[1721748817087,1.36145587,66474.0,66473.0,0.009306]
[1721748817275,1.56065587,66474.0,66473.0,0.009306]
[1721748817716,1.56235587,66474.0,66473.0,0.009306]
[1721748817897,1.51235587,66474.0,66473.0,0.009306]
[1721748818124,1.19842211,66474.0,66473.0,0.009306]
[1721748818295,1.16058687,66474.0,66473.0,0.009306]
[1721748818736,1.17078053,66474.0,66473.0,0.009306]
[1721748819179,1.47164953,66474.0,66473.0,0.009306]
[1721748819381,1.52164953,66474.0,66473.0,0.009306]
[1721748819584,1.66861218,66474.0,66473.0,0.009306]
[1721748820223,1.76861218,66474.0,66473.0,0.009306]
[1721748820481,1.66861218,66474.0,66473.0,0.009306]
[1721748820695,1.21137411,66474.0,66473.0,0.009306]
[1721748821110,1.22078053,66474.0,66473.0,0.009306]
[1721748821314,1.52164953,66474.0,66473.0,0.009306]
[1721748821514,1.52164953,66474.0,66468.0,0.009306]
[1721748821515,0.96063,66469.0,66468.0,0.009306]
[1721748821723,1.63062576,66469.0,66468.0,0.009306]
[1721748822582,1.63232576,66469.0,66468.0,0.009306]
[1721748824024,1.67186925,66469.0,66468.0,0.009306]
[1721748824241,1.5497854,66469.0,66468.0,0.009306]
[1721748824453,1.51024191,66469.0,66468.0,0.009306]
[1721748824662,0.5954094,66469.0,66468.0,0.009306]
[1721748824863,0.40541991,66469.0,66468.0,0.009306]
[1721748825071,0.85675791,66469.0,66468.0,0.009306]
[1721748825494,0.55586591,66469.0,66468.0,0.009306]
[1721748825702,0.40541991,66469.0,66468.0,0.009306]
[1721748825905,0.30541991,66469.0,66468.0,0.009306]
[1721748826114,0.14701991,66469.0,66468.0,0.009306]
[1721748826317,0.75975287,66469.0,66468.0,0.009306]
[1721748826491,0.30841487,66469.0,66468.0,0.009306]
[1721748826711,0.45886087,66469.0,66468.0,0.009306]
[1721748826918,0.30841487,66469.0,66468.0,0.009306]
[1721748827433,0.14701991,66469.0,66468.0,0.009306]
[1721748828774,0.1767654,66469.0,66468.0,0.009306]
[1721748828977,0.30046087,66469.0,66468.0,0.009306]
[1721748829176,0.15001487,66469.0,66468.0,0.009306]
[1721748829377,0.14701991,66469.0,66468.0,0.009306]
[1721748830679,0.14701991,66469.0,66468.0,0.159754]
[1721748830836,0.14701991,66469.0,66468.0,0.46065]
[1721748831189,0.14701991,66469.0,66468.0,0.159754]
[1721748831797,0.1617219,66469.0,66468.0,0.009306]
[1721748832004,0.59835791,66469.0,66468.0,0.009306]
[1721748832218,0.72180019,66469.0,66468.0,0.009306]
[1721748832426,1.18109219,66469.0,66468.0,0.009306]
[1721748833369,1.59444319,66469.0,66468.0,0.009306]
[1721748833571,1.84140584,66469.0,66468.0,0.009306]
[1721748833771,1.88211836,66469.0,66468.0,0.009306]
[1721748833977,1.84140584,66469.0,66468.0,0.009306]
[1721748834370,1.94140584,66469.0,66468.0,0.009306]
[1721748834571,2.24229784,66469.0,66468.0,0.009306]
[1721748834990,2.28301036,66469.0,66468.0,0.009306]
[1721748835202,1.882121,66469.0,66468.0,0.009306]
[1721748835995,1.38426635,66469.0,66468.0,0.009306]
[1721748837439,0.49132247,66469.0,66468.0,0.153306]
[1721748837666,0.64176847,66469.0,66468.0,0.153306]
[1721748837841,0.64176847,66469.0,66468.0,0.092606]
[1721748838261,0.94265869,66469.0,66468.0,0.009306]
[1721748838787,0.65209187,66469.0,66468.0,0.009306]
[1721748839689,0.50164587,66469.0,66468.0,0.009306]
[1721748839899,0.33292069,66469.0,66468.0,0.009306]
[1721748840347,0.33291984,66469.0,66468.0,0.009306]
[1721748840589,0.48336584,66469.0,66468.0,0.009306]
[1721748840832,1.08514984,66469.0,66468.0,0.009306]
[1721748841073,1.08514984,66469.0,66462.0,0.05901891]
[1721748841074,0.72975419,66469.0,66462.0,0.05901891]
[1721748841287,0.150453,66466.0,66462.0,0.05295611]
[1721748841533,0.33870993,66465.0,66462.0,0.05295611]
[1721748841800,0.33870993,66465.0,66462.0,0.04918847]
[1721748841801,0.17118391,66464.0,66462.0,0.04918847]
[1721748842021,0.32099782,66463.0,66462.0,0.04918847]
[1721748842242,0.4112793,66463.0,66462.0,0.04542113]
[1721748842958,0.5617383,66463.0,66462.0,0.04542113]
[1721748843160,0.4112793,66463.0,66462.0,0.04542113]
[1721748843363,0.31820382,66463.0,66462.0,0.04542113]
[1721748843504,0.25574504,66463.0,66462.0,0.04542113]
[1721748843858,0.31820276,66463.0,66462.0,0.04542113]
[1721748844280,0.451398,66460.0,66459.0,0.0829]
[1721748844499,0.46866876,66460.0,66459.0,0.0829]
[1721748844699,0.76960076,66460.0,66459.0,0.0829]
[1721748845051,0.46866876,66460.0,66459.0,0.0829]
[1721748845259,0.46866876,66460.0,66457.0,0.009317]
[1721748845260,0.451411,66458.0,66457.0,0.009317]
[1721748845472,0.31820276,66458.0,66457.0,0.009317]
[1721748846569,0.25574504,66458.0,66457.0,0.009317]
[1721748846746,0.14701991,66458.0,66457.0,0.009317]
[1721748847675,0.69872064,66458.0,66457.0,0.009317]
[1721748847878,0.49114014,66458.0,66457.0,0.009317]
[1721748848095,0.85454148,66458.0,66457.0,0.009317]
[1721748848721,0.55360048,66458.0,66457.0,0.009317]
[1721748848930,0.49114014,66458.0,66457.0,0.009317]
[1721748849138,0.29748991,66458.0,66457.0,0.009317]
[1721748849357,0.30048487,66458.0,66457.0,0.009317]
[1721748849776,0.15001487,66458.0,66457.0,0.009317]
[1721748850390,0.14701991,66458.0,66457.0,0.009317]
[1721748850821,0.14701991,66458.0,66457.0,0.154817]
[1721748851029,0.29748991,66458.0,66457.0,0.154817]
[1721748851239,0.70749986,66458.0,66457.0,0.089417]
[1721748851445,0.90236687,66458.0,66457.0,0.089417]
[1721748851656,0.72908387,66458.0,66457.0,0.009317]
[1721748851883,0.88748387,66458.0,66457.0,0.009317]
[1721748852098,0.42814287,66458.0,66457.0,0.009317]
[1721748852326,0.27467791,66458.0,66457.0,0.009317]
[1721748852538,0.27468101,66458.0,66457.0,0.009317]
[1721748852755,0.14701991,66458.0,66457.0,0.009317]
[1721748852992,0.27481853,66458.0,66457.0,0.009317]
[1721748853425,0.72922449,66458.0,66457.0,0.009317]
[1721748853641,0.42828349,66458.0,66457.0,0.009317]
[1721748853846,0.30048487,66458.0,66457.0,0.009317]
[1721748854052,0.21247717,66458.0,66457.0,0.009317]
[1721748854737,0.36294717,66458.0,66457.0,0.009317]
[1721748854914,0.20948221,66458.0,66457.0,0.009317]
[1721748855580,0.29748991,66458.0,66457.0,0.009317]
[1721748855788,0.36294676,66458.0,66457.0,0.009317]
[1721748856015,0.21247676,66458.0,66457.0,0.009317]
[1721748856204,0.30048487,66458.0,66457.0,0.009317]
[1721748856928,0.15001487,66458.0,66457.0,0.009317]
[1721748857138,0.29748991,66458.0,66457.0,0.009317]
[1721748857345,0.15001487,66458.0,66457.0,0.009317]
[1721748857478,0.14701991,66458.0,66457.0,0.009317]
[1721748858102,0.14701991,66458.0,66457.0,0.06544529]
[1721748858299,0.14701991,66458.0,66457.0,0.21591829]
[1721748858507,0.14701991,66458.0,66457.0,0.15979]
[1721748858707,0.14701991,66458.0,66457.0,0.06543889]
[1721748860037,0.1617219,66458.0,66457.0,0.06543889]
[1721748860439,0.6131329,66458.0,66457.0,0.06543889]
[1721748860676,0.9140739,66458.0,66457.0,0.06543889]
[1721748860874,0.6131329,66458.0,66457.0,0.06543889]
[1721748861080,0.7715329,66458.0,66457.0,0.06543889]
[1721748861276,0.75683091,66458.0,66457.0,0.06543889]
[1721748861479,0.14701991,66458.0,66457.0,0.06543889]
[1721748861680,0.29748991,66458.0,66457.0,0.0651128]
[1721748861973,0.59843091,66458.0,66457.0,0.0651128]
[1721748862181,0.14701991,66458.0,66457.0,0.0651128]
[1721748862600,0.6585724,66458.0,66457.0,0.0651128]
[1721748862805,0.66156736,66458.0,66457.0,0.0651128]
[1721748863229,0.6585724,66458.0,66457.0,0.0651128]
[1721748863851,1.1179134,66458.0,66457.0,0.0651128]
[1721748864053,1.1803743,66458.0,66457.0,0.009317]
[1721748864257,1.6922153,66458.0,66457.0,0.009317]
[1721748864463,1.97993343,66458.0,66457.0,0.009317]
[1721748864668,1.91434452,66458.0,66457.0,0.009317]
[1721748864884,1.79222264,66458.0,66457.0,0.009317]
[1721748865087,1.57118115,66458.0,66457.0,0.009317]
[1721748865289,1.20777191,66458.0,66457.0,0.06915989]
[1721748865493,1.50871291,66458.0,66457.0,0.06915989]
[1721748865712,1.60871291,66458.0,66457.0,0.06915989]
[1721748865928,1.71814044,66458.0,66457.0,0.06915989]
[1721748866138,1.81814044,66458.0,66457.0,0.06915989]
[1721748866343,1.65567556,66458.0,66457.0,0.06915989]
[1721748866549,0.45588991,66458.0,66457.0,0.06915989]
[1721748866758,0.75683091,66458.0,66457.0,0.20715989]
[1721748866978,0.81929712,66458.0,66457.0,0.20715989]
[1721748867161,0.81929712,66458.0,66457.0,0.14705989]
[1721748867162,0.20948612,66458.0,66457.0,0.14705989]
[1721748867377,0.14701991,66458.0,66457.0,0.087217]
[1721748867568,0.3430785,66458.0,66457.0,0.14826688]
[1721748867693,0.6440195,66458.0,66457.0,0.14826688]
[1721748868096,0.3430785,66458.0,66457.0,0.14826688]
[1721748868337,0.14701991,66458.0,66457.0,0.14826688]
[1721748869149,0.29748991,66458.0,66457.0,0.14826688]
[1721748869356,0.66089629,66458.0,66457.0,0.14826688]
[1721748869787,0.59843091,66458.0,66457.0,0.07036688]
[1721748869987,1.1635479,66458.0,66457.0,0.07036688]
[1721748870216,1.27601227,66458.0,66457.0,0.07036688]
[1721748870552,1.5144889,66458.0,66457.0,0.07054907]
[1721748870782,1.2135479,66458.0,66457.0,0.07054907]
[1721748871384,1.10777191,66458.0,66457.0,0.07054907]
[1721748871782,1.40871291,66458.0,66457.0,0.07054907]
[1721748871937,1.57117978,66458.0,66457.0,0.07054907]
[1721748872157,1.58313975,66458.0,66457.0,0.009317]
[1721748872357,1.7301024,66458.0,66457.0,0.009317]
[1721748872542,1.7301024,66458.0,66457.0,0.06963881]
[1721748872543,1.71814243,66458.0,66457.0,0.06963881]
[1721748872742,1.7376861,66458.0,66457.0,0.009317]
[1721748872967,1.71814243,66458.0,66457.0,0.009317]
[1721748873203,1.73292684,66458.0,66457.0,0.009317]
[1721748873437,1.49637385,66458.0,66457.0,0.009317]
[1721748873994,0.82970744,66458.0,66457.0,0.009317]
[1721748874193,0.82970744,66458.0,66457.0,0.04658512]
[1721748874194,0.76723936,66458.0,66457.0,0.04658512]
[1721748874393,1.06818036,66458.0,66457.0,0.04658512]
[1721748874594,0.82970438,66458.0,66457.0,0.04658512]
[1721748874844,0.94276732,66458.0,66457.0,0.04658512]
[1721748874971,0.94276732,66458.0,66457.0,0.009317]
[1721748875156,0.52876338,66458.0,66457.0,0.009317]
[1721748875362,0.37829338,66458.0,66457.0,0.1881253]
[1721748875558,0.31582836,66458.0,66457.0,0.1881253]
[1721748875859,0.14701991,66458.0,66457.0,0.1881253]
[1721748877499,0.14701991,66458.0,66457.0,0.3385983]
[1721748878118,0.14701991,66458.0,66457.0,0.1881253]
[1721748878558,0.14701991,66458.0,66457.0,0.1831253]
[1721748879202,0.3121919,66458.0,66457.0,0.1831253]
[1721748879410,0.59843091,66458.0,66457.0,0.18316864]
[1721748879614,0.89937191,66458.0,66457.0,0.04136864]
[1721748880648,1.40871291,66458.0,66457.0,0.04136864]
[1721748880849,1.40871291,66458.0,66457.0,0.004317]
[1721748880850,1.61814793,66458.0,66457.0,0.004317]
[1721748881058,2.13523656,66458.0,66457.0,0.004317]
[1721748881262,0.960832,66451.0,66450.0,0.01]
[1721748881469,0.960945,66441.0,66426.0,0.0796]
[1721748881677,1.47145528,66441.0,66426.0,0.0796]
[1721748881885,1.47145528,66441.0,66440.0,0.04622075]
[1721748881886,1.05796491,66441.0,66440.0,0.04622075]
[1721748882090,0.20950488,66441.0,66440.0,0.300428]
[1721748882319,0.10984565,66448.0,66440.0,0.300428]
[1721748882320,0.300951,66456.0,66440.0,0.149917]
[1721748882538,0.14701991,66445.0,66440.0,0.45094]
[1721748882734,0.14701991,66445.0,66443.0,0.150504]
[1721748882735,0.06248197,66444.0,66443.0,0.150504]
[1721748882936,0.2129097,66445.0,66444.0,0.451507]
[1721748883137,0.2129097,66445.0,66444.0,0.528307]
[1721748883138,0.2095099,66445.0,66444.0,0.528307]
[1721748883367,0.14701991,66445.0,66444.0,0.528307]
[1721748883595,0.14701991,66445.0,66444.0,0.227302]
[1721748883954,0.04389803,66454.0,66449.0,0.300979]
[1721748884133,0.2122937,66453.0,66451.0,0.150485]
[1721748884334,0.26726589,66452.0,66446.0,0.300995]
[1721748884538,0.26726589,66452.0,66444.0,0.0768]
[1721748884539,0.06527379,66451.0,66450.0,0.451467]
[1721748884733,0.14701991,66452.0,66451.0,0.451459]
[1721748885177,0.14701991,66452.0,66451.0,0.150486]
[1721748885696,0.14701991,66452.0,66451.0,0.451459]
[1721748886265,0.14701991,66452.0,66451.0,0.532559]
[1721748886898,0.04386687,66463.0,66459.0,0.150468]
[1721748887113,0.21228669,66462.0,66456.0,0.30095]
[1721748887227,0.06247278,66461.0,66454.0,0.05]
[1721748887432,0.14981391,66460.0,66455.0,0.300951]
[1721748887631,0.14981391,66460.0,66454.0,0.05]
[1721748887632,0.14981391,66460.0,66459.0,0.451405]
[1721748887837,0.20948922,66460.0,66459.0,0.451405]
[1721748888038,0.20948922,66460.0,66459.0,0.150468]
[1721748888296,0.04386687,66466.0,66465.0,1.053185]
[1721748888297,0.00253937,66466.0,66465.0,1.053185]
[1721748888445,0.11846567,66472.0,66465.0,1.053185]
[1721748888446,0.11848141,66477.0,66476.0,0.35086]
[1721748888653,0.08774531,66479.0,66478.0,0.150425]
[1721748888860,0.13096235,66479.0,66478.0,0.802127]
[1721748889064,0.13096235,66479.0,66478.0,0.906627]
[1721748889261,0.13096235,66479.0,66478.0,1.207478]
[1721748889673,0.13096235,66479.0,66478.0,1.35444065]
[1721748889864,0.19675911,66479.0,66478.0,1.35444065]
[1721748890264,0.13096235,66479.0,66478.0,1.207478]
[1721748890490,0.13096235,66479.0,66478.0,0.0815]
[1721748890688,0.13096235,66479.0,66478.0,0.532776]
[1721748891390,0.13096297,66479.0,66478.0,0.532776]
[1721748891612,0.13096297,66479.0,66478.0,0.833627]
[1721748891813,0.17483772,66479.0,66478.0,0.946127]
[1721748892015,0.17483772,66479.0,66478.0,0.896127]
[1721748892464,0.17483772,66479.0,66478.0,0.946127]
[1721748892840,0.13096297,66479.0,66478.0,0.946127]
[1721748893048,0.3953441,66479.0,66476.0,0.7345]
[1721748893246,0.3953441,66479.0,66463.0,0.002794]
[1721748893247,0.35541991,66477.0,66463.0,0.0646]
[1721748893394,0.11736299,66472.0,66463.0,0.0646]
[1721748893598,0.27798288,66471.0,66468.0,0.150446]
[1721748893992,0.20445239,66470.0,66463.0,0.0646]
[1721748894148,0.28097784,66469.0,66463.0,0.0646]
[1721748894363,0.0930613,66468.0,66463.0,0.0646]
[1721748894555,0.07348942,66470.0,66455.0,0.06]
[1721748894556,0.24268642,66467.0,66455.0,0.06]
[1721748894805,0.150455,66465.0,66456.0,0.150474]
[1721748895030,0.150465,66461.0,66455.0,0.06]
[1721748895234,0.51339777,66464.0,66455.0,0.06]
[1721748895235,0.14701991,66460.0,66455.0,0.06]
[1721748895408,0.14701991,66460.0,66456.0,0.002794]
[1721748895811,0.14701991,66460.0,66455.0,0.06]
[1721748896219,0.14701991,66460.0,66456.0,0.002794]
[1721748896426,0.14701991,66460.0,66458.0,0.150469]
[1721748896845,0.14701991,66460.0,66457.0,0.150472]
[1721748897223,0.14701991,66460.0,66455.0,0.06]
[1721748897606,0.06247118,66459.0,66456.0,0.002794]
[1721748897807,0.14701991,66458.0,66457.0,0.150473]
[1721748898008,0.04387924,66469.0,66458.0,0.150469]
[1721748898212,0.2297672,66468.0,66462.0,0.300919]
[1721748898413,0.2297672,66468.0,66459.0,0.002794]
[1721748898414,0.08274729,66467.0,66459.0,0.300937]
[1721748898628,0.08274729,66467.0,66460.0,0.002794]
[1721748898629,0.06246672,66466.0,66460.0,0.002794]
[1721748898831,0.06246672,66466.0,66462.0,0.15046]
[1721748899075,0.06246672,66466.0,66465.0,0.150455]
[1721748899600,0.06246672,66466.0,66465.0,0.30091]
[1721748899601,0.06246585,66466.0,66465.0,0.30091]
[1721748899715,0.06246585,66466.0,66460.0,0.05]
[1721748899924,0.04387924,66471.0,66467.0,0.150449]
[1721748900141,0.06246565,66470.0,66464.0,0.30091]
[1721748900349,0.06246565,66470.0,66460.0,0.35093]
[1721748900557,0.04387994,66471.0,66470.0,0.45133]
[1721748900868,0.10634539,66472.0,66470.0,0.150443]
[1721748901069,0.20948536,66471.0,66458.0,0.300939]
[1721748901297,0.07348942,66466.0,66459.0,0.002794]
[1721748901579,0.150461,66462.0,66456.0,0.002794]
[1721748901752,0.14701991,66461.0,66454.0,0.383159]
[1721748901929,0.14701991,66461.0,66454.0,0.0822]
[1721748902130,0.00299496,66469.0,66454.0,0.0822]
[1721748902334,0.00299496,66469.0,66464.0,0.150457]
[1721748902335,0.06246741,66465.0,66464.0,0.150457]
[1721748902539,0.06246741,66465.0,66461.0,0.300926]
[1721748902712,0.06246741,66465.0,66461.0,0.150462]
[1721748902898,0.06246741,66465.0,66455.0,0.11]
[1721748903101,0.06246741,66465.0,66456.0,0.023]
[1721748903349,0.150469,66459.0,66451.0,0.04420439]
[1721748903551,0.15001487,66458.0,66449.0,0.064]
[1721748903698,0.15001487,66458.0,66450.0,0.002794]
[1721748903908,0.15001487,66458.0,66451.0,0.150485]
[1721748904110,0.14701991,66458.0,66452.0,0.002794]
[1721748904307,0.14701991,66458.0,66451.0,0.002794]
[1721748904533,0.00299496,66465.0,66456.0,0.150474]
[1721748904902,0.14701991,66464.0,66456.0,0.150474]
[1721748905032,0.14701991,66464.0,66457.0,0.002794]
[1721748905233,0.07648438,66463.0,66453.0,0.002794]
[1721748905490,0.14701991,66461.0,66450.0,0.002794]
[1721748905691,0.300952,66456.0,66450.0,0.002794]
[1721748905890,0.150486,66451.0,66450.0,0.002794]
[1721748906090,0.44799291,66451.0,66448.0,0.376]
[1721748906293,0.150491,66449.0,66448.0,0.376]
[1721748906497,0.29751091,66449.0,66448.0,0.376]
[1721748906904,0.387456,66449.0,66448.0,0.376]
[1721748907031,0.4479614,66449.0,66442.0,0.0666]
[1721748907243,0.300992,66447.0,66442.0,0.0666]
[1721748907494,0.14701991,66446.0,66442.0,0.0666]
[1721748908313,0.150474,66457.0,66448.0,0.150491]
[1721748908515,0.14701991,66456.0,66444.0,0.301004]
[1721748908709,0.150483,66453.0,66445.0,0.1881901]
[1721748909000,0.150494,66448.0,66442.0,0.0666]
[1721748909113,0.14701991,66447.0,66442.0,0.0666]
[1721748909497,0.14701991,66447.0,66440.0,0.009317]
[1721748909498,0.301018,66441.0,66440.0,0.009317]
[1721748909693,0.29752891,66441.0,66440.0,0.009317]
[1721748909897,0.14701991,66441.0,66440.0,0.009317]
[1721748910068,0.14701991,66441.0,66440.0,0.159828]
[1721748910250,0.14701991,66441.0,66440.0,0.009317]
[1721748910855,0.14701991,66441.0,66440.0,0.460851]
[1721748911065,0.29752891,66441.0,66440.0,0.009317]
[1721748911287,0.59854691,66441.0,66440.0,0.009317]
[1721748911487,1.35918291,66441.0,66440.0,0.009317]
[1721748912383,0.59854691,66441.0,66440.0,0.009317]
[1721748912596,0.89956491,66441.0,66440.0,0.009317]